{"text_format":"2","workbook":"xlsx","n_sheets":6,"sheets":["Руководство","1.Внесение данных","2. Результат оценки","Справочник","Доп.формулы для кер_стекло","Ед. измерения"],"not_rendered":{"charts":0,"images":0,"macros":0,"external_links":0,"defined_names":0,"comments":0,"pivot_tables":0},"unopened":[],"bounds":{"document_bytes":16777216,"sheet_cells":100000,"run_cost":"one","rows_first":2000,"rows_last":500,"rows_between":2000,"halvings":0,"cell_chars":16384,"cell_head_chars":4096},"cells_cut":0,"cells_raw":0,"read":"whole","date_system":"1900"}

{"sheet":"Руководство","index":0,"n_rows":15,"n_cols":2,"rows_kept":15,"cut":false,"hidden":false,"merged":[[3,1,3,13],[5,1,5,13],[6,1,6,13],[7,1,7,13],[8,1,8,13],[9,1,9,13],[10,1,10,13],[11,1,11,13],[12,1,12,13],[13,1,13,13]]}
[]
[null,"Руководство по использованию инструмента"]
[]
[null,"Данный инструмент разработан для предварительной оценки необходимости подачи отчётности о выбросах парниковых газов в соответствии с Постановлением Правительства РФ от 20.04.2022 № 707 (ред. от 29.10.2022).\nМетодологическая база инструмента включает:\n• Приказ Минприроды России № 371;\n• Распоряжение Правительства РФ № 2979-р;\n• Постановление Правительства РФ № 707.\nРезультаты, полученные с использованием данного инструмента, носят информационный характер и не освобождают компанию от обязательства самостоятельной проверки данных перед подачей официальной отчётности."]
[null,"Порядок работы с инструментом"]
[null,"1. Заполнение исходных данных\nОсновной рабочий лист — «Внесение данных».\nВнесите данные за отчетный год по каждому блоку таблиц.\n• Ячейки, подлежащие обязательному заполнению, отмечены цветной заливкой. Заливка исчезает после ввода данных.\n• Убедитесь, что введенные данные корректны и соответствуют требуемым единицам измерения."]
[null,"2. Сжигание топлива на котельных и генерация энергии\nНа листе «Внесение данных», в таблице «Внесение данных по сжиганию на котельных, объектах генерации энергии, в том числе резервных»:\n• В столбце «Единица измерения» выберите значение из выпадающего списка (тонны, тыс м³, литры и др.).\n• После выбора проверьте столбец «Коэффициент перевода в единицы по Постановлению Правительства № 707»:\n  o Если выводится «-», смените единицу измерения на иную, пока коэффициент не примет числовое значение.\n  o Для видов топлива с предустановленным коэффициентом 0,001 данные вносятся в тоннах."]
[null,"3. Сжигание топлива в транспорте\n• Аналогично заполните таблицу «Внесение данных по сжиганию топлива в транспорте».\n• Убедитесь в корректности выбранных единиц измерения и коэффициентов."]
[null,"4. Обработка, сжигание и захоронение отходов\nЕсли ваша компания не передает отходы сторонним организациям, а проводит их обработку/сжигание/захоронение самостоятельно — заполните таблицу «Внесение данных по обработке, сжиганию и захоронению твердых отходов»."]
[null,"5. Производство керамических изделий\nЕсли компания ведет такую деятельность, внесите информацию в таблицу «Внесение данных по производству керамических изделий».\nВ графах «Содержание карбоната в минеральном сырье» и «Степень кальцинирования карбоната» значения указываются в долях, то есть от 0 до 1 без указания знака % (например, 0,75)."]
[null,"6. Производство стекла\nЕсли компания ведет такую деятельность, внесите информацию в таблицу «Внесение данных по производству стекла».\nВ графе «Степень кальцинирования карбоната» значения указываются в долях, то есть от 0 до 1 без указания знака % (например, 0,75)."]
[null,"7. Проверка данных\nПосле внесения всех значений проверьте:\n• корректность данных;\n• соответствие единиц измерения;\n• отсутствие пустых обязательных ячеек."]
[null,"8. Анализ результатов\n• Перейдите на лист «Результат оценки».\n• Ознакомьтесь с суммарными выбросами организации в тоннах CO₂-эквивалента.\n• Если результат превышает 50 000 т CO₂-экв., согласно 296-ФЗ и ПП РФ №707 соответствует критерию подачи отчётности в ГИС «Энергоэффективность» в срок до 1 июля года, следующего за отчетным. "]
[null,"Важные замечания\n• Инструмент предоставляет ориентировочную оценку и не заменяет официальных расчётов.\n• Ответственность за корректность исходных данных лежит на пользователе.\n• Непредставление отчётности при обязательстве её подачи может повлечь ответственность в соответствии с КоАП РФ.\n• С более подробной информацией по критериям подачи корректной отчетности можно ознакомиться напрямую на портале ГИС «Энергоэффективность»."]
[null,"Ссылка на портал ГИС \"Энергоэффективность\""]

{"sheet":"1.Внесение данных","index":1,"n_rows":84,"n_cols":6,"rows_kept":84,"cut":false,"hidden":false,"merged":[[34,1,34,4]]}
[]
[null,"1. Внесение данных"]
[null,"Внесите данные в столбец D для всех применимых блоков таблиц."]
[null,"Данные вносятся за последний отчетный год."]
[null,"Выберите необходимые единицы измерения."]
[null,"Коэффициенты в таблицах подтянутся автоматически."]
[]
[null,"Внесение данных по сжиганию на котельных, объектах генерации энергии, в том числе резервных"]
[]
[null,"Тип топлива","Единица измерения","Данные для внесения","Коэффициент перевода в единицы по Постановлению Правительства № 707"]
[null,"Газ горючий природный (естественный)","Необходимо заполнить",null,{"$f":"IFERROR(INDEX(Справочник!$C$181:$E$210,MATCH('1.Внесение данных'!B11,Справочник!$B$181:$B$210,0),MATCH('1.Внесение данных'!C11,Справочник!$C$179:$E$179,0)),\"Нет коэффициента\")","v":"Нет коэффициента"},{"$f":"IF(C11=\"Необходимо заполнить\",(IF(D11>0, \"Пожалуйста, выберите единицу измерения\", \"\")),\"\")","v":""}]
[null,"Газ сжиженный","Необходимо заполнить",null,{"$f":"IFERROR(INDEX(Справочник!$C$181:$E$210,MATCH('1.Внесение данных'!B12,Справочник!$B$181:$B$210,0),MATCH('1.Внесение данных'!C12,Справочник!$C$179:$E$179,0)),\"Нет коэффициента\")","v":"Нет коэффициента"},{"$f":"IF(C12=\"Необходимо заполнить\",(IF(D12>0, \"Пожалуйста, выберите единицу измерения\", \"\")),\"\")","v":""}]
[null,"Пропан и бутан сжиженные, газы углеводородные и их смеси сжиженные","Необходимо заполнить",null,{"$f":"IFERROR(INDEX(Справочник!$C$181:$E$210,MATCH('1.Внесение данных'!B13,Справочник!$B$181:$B$210,0),MATCH('1.Внесение данных'!C13,Справочник!$C$179:$E$179,0)),\"Нет коэффициента\")","v":"Нет коэффициента"},""]
[null,"Газ попутный нефтяной (нефтяные месторождения)","Необходимо заполнить",null,{"$f":"IFERROR(INDEX(Справочник!$C$181:$E$210,MATCH('1.Внесение данных'!B14,Справочник!$B$181:$B$210,0),MATCH('1.Внесение данных'!C14,Справочник!$C$179:$E$179,0)),\"Нет коэффициента\")","v":"Нет коэффициента"},""]
[null,"Газ попутный нефтяной (газоконденсатные месторождения)","Необходимо заполнить",null,{"$f":"IFERROR(INDEX(Справочник!$C$181:$E$210,MATCH('1.Внесение данных'!B15,Справочник!$B$181:$B$210,0),MATCH('1.Внесение данных'!C15,Справочник!$C$179:$E$179,0)),\"Нет коэффициента\")","v":"Нет коэффициента"},""]
[null,"Газ попутный нефтяной (газовые месторождения)","Необходимо заполнить",null,{"$f":"IFERROR(INDEX(Справочник!$C$181:$E$210,MATCH('1.Внесение данных'!B16,Справочник!$B$181:$B$210,0),MATCH('1.Внесение данных'!C16,Справочник!$C$179:$E$179,0)),\"Нет коэффициента\")","v":"Нет коэффициента"},""]
[null,"Газ горючий искусственный доменный","Необходимо заполнить",null,{"$f":"IFERROR(INDEX(Справочник!$C$181:$E$210,MATCH('1.Внесение данных'!B17,Справочник!$B$181:$B$210,0),MATCH('1.Внесение данных'!C17,Справочник!$C$179:$E$179,0)),\"Нет коэффициента\")","v":"Нет коэффициента"},""]
[null,"Кокс металлургический","Необходимо заполнить",null,{"$f":"IFERROR(INDEX(Справочник!$C$181:$E$210,MATCH('1.Внесение данных'!B18,Справочник!$B$181:$B$210,0),MATCH('1.Внесение данных'!C18,Справочник!$C$179:$E$179,0)),\"Нет коэффициента\")","v":"Нет коэффициента"},""]
[null,"Кокс нефтяной и сланцевый","Необходимо заполнить",null,{"$f":"IFERROR(INDEX(Справочник!$C$181:$E$210,MATCH('1.Внесение данных'!B19,Справочник!$B$181:$B$210,0),MATCH('1.Внесение данных'!C19,Справочник!$C$179:$E$179,0)),\"Нет коэффициента\")","v":"Нет коэффициента"},""]
[null,"Мазут (мазут топочный)","Необходимо заполнить",null,{"$f":"IFERROR(INDEX(Справочник!$C$181:$E$210,MATCH('1.Внесение данных'!B20,Справочник!$B$181:$B$210,0),MATCH('1.Внесение данных'!C20,Справочник!$C$179:$E$179,0)),\"Нет коэффициента\")","v":"Нет коэффициента"},""]
[null,"Антрацит","Необходимо заполнить",null,1E-3,""]
[null,"Коксующийся уголь","Необходимо заполнить",null,1E-3,""]
[null,"Каменный уголь","Необходимо заполнить",null,1E-3,""]
[null,"Уголь бурый","Необходимо заполнить",null,{"$f":"IFERROR(INDEX(Справочник!$C$181:$E$210,MATCH('1.Внесение данных'!B24,Справочник!$B$181:$B$210,0),MATCH('1.Внесение данных'!C24,Справочник!$C$179:$E$179,0)),\"Нет коэффициента\")","v":"Нет коэффициента"},""]
[null,"Торф топливный","Необходимо заполнить",null,1E-3,""]
[null,"Брикеты и полубрикеты торфяные","Необходимо заполнить",null,1E-3,""]
[null,"Дизельное топливо","Необходимо заполнить",null,{"$f":"IFERROR(INDEX(Справочник!$C$181:$E$210,MATCH('1.Внесение данных'!B27,Справочник!$B$181:$B$210,0),MATCH('1.Внесение данных'!C27,Справочник!$C$179:$E$179,0)),\"Нет коэффициента\")","v":"Нет коэффициента"},{"$f":"IF(C27=\"Необходимо заполнить\",(IF(D27>0, \"Пожалуйста, выберите единицу измерения\", \"\")),\"\")","v":""}]
[]
[null,"Внесение данных по сжиганию топлива в транспорте"]
[]
[null,"Тип топлива","Единица измерения","Данные для внесения","Коэффициент перевода в единицы по Постановлению Правительства № 707"]
[null,"Авиационный бензин","Необходимо заполнить",null,{"$f":"IFERROR(INDEX(Справочник!$C$181:$E$210,MATCH('1.Внесение данных'!B32,Справочник!$B$181:$B$210,0),MATCH('1.Внесение данных'!C32,Справочник!$C$179:$E$179,0)),\"Нет коэффициента\")","v":"Нет коэффициента"},{"$f":"IF(C32=\"Необходимо заполнить\",(IF(D32>0, \"Пожалуйста, выберите единицу измерения\", \"\")),\"\")","v":""}]
[null,"Топливо для реактивных двигателей","Необходимо заполнить",null,{"$f":"IFERROR(INDEX(Справочник!$C$181:$E$210,MATCH('1.Внесение данных'!B33,Справочник!$B$181:$B$210,0),MATCH('1.Внесение данных'!C33,Справочник!$C$179:$E$179,0)),\"Нет коэффициента\")","v":"Нет коэффициента"},""]
[null,"Дизельное топливо (железнодорожный транспорт)","Необходимо заполнить",null,{"$f":"IFERROR(INDEX(Справочник!$C$181:$E$210,MATCH('1.Внесение данных'!B34,Справочник!$B$181:$B$210,0),MATCH('1.Внесение данных'!C34,Справочник!$C$179:$E$179,0)),\"Нет коэффициента\")","v":"Нет коэффициента"},""]
[null,"Бензин в автотранспорте"]
[null,"АИ-80","Необходимо заполнить",null,{"$f":"IFERROR(INDEX(Справочник!$C$181:$E$210,MATCH('1.Внесение данных'!B36,Справочник!$B$181:$B$210,0),MATCH('1.Внесение данных'!C36,Справочник!$C$179:$E$179,0)),\"Нет коэффициента\")","v":"Нет коэффициента"},""]
[null,"АИ-92","Необходимо заполнить",null,{"$f":"IFERROR(INDEX(Справочник!$C$181:$E$210,MATCH('1.Внесение данных'!B37,Справочник!$B$181:$B$210,0),MATCH('1.Внесение данных'!C37,Справочник!$C$179:$E$179,0)),\"Нет коэффициента\")","v":"Нет коэффициента"},""]
[null,"АИ-93","Необходимо заполнить",null,{"$f":"IFERROR(INDEX(Справочник!$C$181:$E$210,MATCH('1.Внесение данных'!B38,Справочник!$B$181:$B$210,0),MATCH('1.Внесение данных'!C38,Справочник!$C$179:$E$179,0)),\"Нет коэффициента\")","v":"Нет коэффициента"},""]
[null,"АИ-95","Необходимо заполнить",null,{"$f":"IFERROR(INDEX(Справочник!$C$181:$E$210,MATCH('1.Внесение данных'!B39,Справочник!$B$181:$B$210,0),MATCH('1.Внесение данных'!C39,Справочник!$C$179:$E$179,0)),\"Нет коэффициента\")","v":"Нет коэффициента"},""]
[null,"АИ-98","Необходимо заполнить",null,{"$f":"IFERROR(INDEX(Справочник!$C$181:$E$210,MATCH('1.Внесение данных'!B40,Справочник!$B$181:$B$210,0),MATCH('1.Внесение данных'!C40,Справочник!$C$179:$E$179,0)),\"Нет коэффициента\")","v":"Нет коэффициента"},""]
[null,"Дизельное топливо (летнее, зимнее, арктическое) в автотранспорте","Необходимо заполнить",null,{"$f":"IFERROR(INDEX(Справочник!$C$181:$E$210,MATCH('1.Внесение данных'!B41,Справочник!$B$181:$B$210,0),MATCH('1.Внесение данных'!C41,Справочник!$C$179:$E$179,0)),\"Нет коэффициента\")","v":"Нет коэффициента"},""]
[null,"Сжиженный нефтяной газ (пропан, изобутан, н-бутан)","Необходимо заполнить",null,{"$f":"IFERROR(INDEX(Справочник!$C$181:$E$210,MATCH('1.Внесение данных'!B42,Справочник!$B$181:$B$210,0),MATCH('1.Внесение данных'!C42,Справочник!$C$179:$E$179,0)),\"Нет коэффициента\")","v":"Нет коэффициента"},""]
[null,"Газ сжиженный (морской и внутренний водный транспорт)","Необходимо заполнить",null,{"$f":"IFERROR(INDEX(Справочник!$C$181:$E$210,MATCH('1.Внесение данных'!B43,Справочник!$B$181:$B$210,0),MATCH('1.Внесение данных'!C43,Справочник!$C$179:$E$179,0)),\"Нет коэффициента\")","v":"Нет коэффициента"},""]
[null,"Мазутное топливо (мазут флотский)","Необходимо заполнить",null,{"$f":"IFERROR(INDEX(Справочник!$C$181:$E$210,MATCH('1.Внесение данных'!B44,Справочник!$B$181:$B$210,0),MATCH('1.Внесение данных'!C44,Справочник!$C$179:$E$179,0)),\"Нет коэффициента\")","v":"Нет коэффициента"},""]
[null,"Дизельное топливо (морской и внутренний водный транспорт)","Необходимо заполнить",null,{"$f":"IFERROR(INDEX(Справочник!$C$181:$E$210,MATCH('1.Внесение данных'!B45,Справочник!$B$181:$B$210,0),MATCH('1.Внесение данных'!C45,Справочник!$C$179:$E$179,0)),\"Нет коэффициента\")","v":"Нет коэффициента"},""]
[null,"Компримированный природный газ","Необходимо заполнить",null,{"$f":"IFERROR(INDEX(Справочник!$C$181:$E$210,MATCH('1.Внесение данных'!B46,Справочник!$B$181:$B$210,0),MATCH('1.Внесение данных'!C46,Справочник!$C$179:$E$179,0)),\"Нет коэффициента\")","v":"Нет коэффициента"},""]
[]
[null,"Внесение данных по обработке, сжиганию и захоронению твердых отходов"]
[]
[null,"Тип обращения с отходами","Единица измерения","Данные для внесения","Коэффициент перевода в единицы по Постановлению Правительства № 707"]
[null,"Компостирование \n(за исключением отходов животноводства (навоз и помет)","т",null,1E-3]
[null,"Анаэробное сбраживание \n(за исключением отходов животноводства (навоз и помет)","т",null,1E-3]
[null,"Сжигание твердых коммунальных отходов (небиологическая фракция)","т",null,1E-3]
[null,"Сжигание нефтесодержащих отходов","т",null,1E-3]
[]
[null,"Внесение данных по производству керамических изделий"]
[]
[null,"Показатель","Единица измерения","Данные для внесения","Коэффициент перевода в единицы по Постановлению Правительства № 707"]
[null,"Производство керамических изделий","т",null,1E-3]
[null,"Расход минерального сырья, содержащего \nкарбонат CaCO3, загруженного в обжиговую печь","т"]
[null,"Расход минерального сырья, содержащего \nкарбонат MgCO3, загруженное в обжиговую печь за период y","т"]
[null,"Расход минерального сырья, содержащего карбонат CaMg(CO3)2, загруженное в обжиговую печь за период y","т"]
[null,"Расход минерального сырья, содержащего карбонат FeCO3, загруженное в обжиговую печь за период y","т"]
[null,"Содержание карбоната CaCO3 в минеральном сырье","доля"]
[null,"Содержание карбоната MgCO3 в минеральном сырье","доля"]
[null,"Содержание карбоната CaMg(CO3)2 в минеральном сырье","доля"]
[null,"Содержание карбоната FeCO3 в минеральном сырье","доля"]
[null,"Степень кальцинирования карбоната CaCO3","доля"]
[null,"Степень кальцинирования карбоната MgCO3","доля"]
[null,"Степень кальцинирования карбоната CaMg(CO3)2","доля"]
[null,"Степень кальцинирования карбоната FeCO3","доля"]
[]
[null,"Внесение данных по производству стекла"]
[]
[null,"Показатель","Единица измерения","Данные для внесения","Коэффициент перевода в единицы по Постановлению Правительства № 707"]
[null,"Производство стекла/стеклянных изделий","т",null,1E-3]
[null,"Масса карбоната CaCO3, \nизрасходованного в стекловаренных печах","т"]
[null,"Масса карбоната MgCO3, \nизрасходованного в стекловаренных печах","т"]
[null,"Масса карбоната CaMg(CO3)2, \nизрасходованного в стекловаренных печах","т"]
[null,"Масса карбоната FeCO3, \nизрасходованного в стекловаренных печах","т"]
[null,"Степень кальцинирования карбоната CaCO3","доля"]
[null,"Степень кальцинирования карбоната MgCO3","доля"]
[null,"Степень кальцинирования карбоната CaMg(CO3)2","доля"]
[null,"Степень кальцинирования карбоната FeCO3","доля"]

{"sheet":"2. Результат оценки","index":2,"n_rows":55,"n_cols":10,"rows_kept":55,"cut":false,"hidden":false,"merged":[[32,2,32,9],[48,2,48,9],[30,1,31,1],[11,2,11,9],[54,2,54,9],[12,1,28,1],[49,1,53,1],[33,1,47,1],[29,2,29,9],[49,2,50,2],[49,3,50,3],[49,4,50,4],[3,6,3,7],[9,7,9,8],[9,1,10,2],[9,3,9,4],[9,5,9,6]]}
[]
[null,null,"2. Результат оценки"]
[]
[null,null,"Итоговое значение массы выбросов, \nтонны CO2-экв.",{"$f":"SUM(J13:J29,J31:J32,J34:J48,J50:J54)","v":0},"Необходимость подавать отчетность",{"$f":"IF(D4>50000, \"Да\", \"Нет\")","v":"Нет"},{"$f":"IF(F4=\"Да\",\"C более подробной информацией по критериям подачи отчетности рекомендуется ознакомиться на портале ГИС «Энергоэффективность»\",\"\")","v":""}]
[]
[null,"Ниже представлен подробный результат расчета на основании данных, внесенных на листе \"1.Внесение данных\"."]
[]
[null,"Форма отчета о выбросах парниковых газов"]
[]
[null,"Производственные процессы и виды деятельности",null,"Показатели производственных процессов и видов деятельности за отчетный период",null,"Конверсионный коэффициент, тонн CO2-экв. на единицу потребляемого энергоресурса/производимой продукции",null,"Масса выбросов по парниковым газам",null,"Общая масса выбросов парниковых газов, тонн"]
[null,null,null,"наименование показателя","значение показателя","парниковый газ","значение коэффициента","тонн","тонн CO2-экв.","CO2-экв."]
[null,"1.","Стационарное сжигание газообразного, жидкого и твердого топлива, включая следующие виды топлива"]
[null,null,"газ горючий природный (естественный)","суммарный расход топлива, млн. куб. м",{"$f":"IF(ISNUMBER('1.Внесение данных'!D11*'1.Внесение данных'!E11), '1.Внесение данных'!D11*'1.Внесение данных'!E11, 0)","v":0},"CO2",{"$f":"VLOOKUP(C13,Справочник!$B$43:$I$130,5,0)","v":1.59},{"$f":"E13*G13*VLOOKUP('2. Результат оценки'!C13,Справочник!$B$43:$I$129, 3,FALSE)*1000","v":0},{"$f":"H13","v":0},{"$f":"I13","v":0}]
[null,null,"газ сжиженный","суммарный расход топлива, тыс. тонн",{"$f":"IF(ISNUMBER('1.Внесение данных'!D12*'1.Внесение данных'!E12), '1.Внесение данных'!D12*'1.Внесение данных'!E12, 0)","v":0},"CO2",{"$f":"VLOOKUP(C14,Справочник!$B$43:$I$130,5,0)","v":1.65},{"$f":"E14*G14*VLOOKUP('2. Результат оценки'!C14,Справочник!$B$43:$I$129, 3,FALSE)*1000","v":0},{"$f":"H14","v":0},0]
[null,null,"пропан и бутан сжиженные, газы углеводородные и их смеси сжиженные","суммарный расход топлива, млн. куб. м",{"$f":"IF(ISNUMBER('1.Внесение данных'!D13*'1.Внесение данных'!E13), '1.Внесение данных'!D13*'1.Внесение данных'!E13, 0)","v":0},"CO2",{"$f":"VLOOKUP(C15,Справочник!$B$43:$I$130,5,0)","v":1.85},{"$f":"E15*G15*VLOOKUP('2. Результат оценки'!C15,Справочник!$B$43:$I$129, 3,FALSE)*1000","v":0},0,0]
[null,null,"газ попутный нефтяной (нефтяные месторождения)","суммарный расход топлива, млн. куб. м",{"$f":"IF(ISNUMBER('1.Внесение данных'!D14*'1.Внесение данных'!E14), '1.Внесение данных'!D14*'1.Внесение данных'!E14, 0)","v":0},"CO2",{"$f":"VLOOKUP(C16,Справочник!$B$43:$I$130,5,0)","v":1.77},{"$f":"E16*G16*VLOOKUP('2. Результат оценки'!C16,Справочник!$B$43:$I$129, 3,FALSE)*1000","v":0},0,0]
[null,null,"газ попутный нефтяной (газоконденсатные месторождения)","суммарный расход топлива, млн. куб. м",{"$f":"IF(ISNUMBER('1.Внесение данных'!D15*'1.Внесение данных'!E15), '1.Внесение данных'!D15*'1.Внесение данных'!E15, 0)","v":0},"CO2",{"$f":"VLOOKUP(C17,Справочник!$B$43:$I$130,5,0)","v":1.64},{"$f":"E17*G17*VLOOKUP('2. Результат оценки'!C17,Справочник!$B$43:$I$129, 3,FALSE)*1000","v":0},0,0]
[null,null,"газ попутный нефтяной \n(газовые месторождения)","суммарный расход топлива, млн. куб. м",{"$f":"IF(ISNUMBER('1.Внесение данных'!D16*'1.Внесение данных'!E16), '1.Внесение данных'!D16*'1.Внесение данных'!E16, 0)","v":0},"CO2",{"$f":"VLOOKUP(C18,Справочник!$B$43:$I$130,5,0)","v":1.62},{"$f":"E18*G18*VLOOKUP('2. Результат оценки'!C18,Справочник!$B$43:$I$129, 3,FALSE)*1000","v":0},0,0]
[null,null,"газ горючий искусственный доменный","суммарный расход топлива, тыс. куб. м",{"$f":"IF(ISNUMBER('1.Внесение данных'!D17*'1.Внесение данных'!E17), '1.Внесение данных'!D17*'1.Внесение данных'!E17, 0)","v":0},"CO2",{"$f":"VLOOKUP(C19,Справочник!$B$43:$I$130,5,0)","v":7.62},{"$f":"E19*G19*VLOOKUP('2. Результат оценки'!C19,Справочник!$B$43:$I$129, 3,FALSE)","v":0},0,0]
[null,null,"кокс металлургический","суммарный расход топлива, тыс. тонн",{"$f":"IF(ISNUMBER('1.Внесение данных'!D18*'1.Внесение данных'!E18), '1.Внесение данных'!D18*'1.Внесение данных'!E18, 0)","v":0},"CO2",{"$f":"VLOOKUP(C20,Справочник!$B$43:$I$130,5,0)","v":3.14},{"$f":"E20*G20*VLOOKUP('2. Результат оценки'!C20,Справочник!$B$43:$I$129, 3,FALSE)*1000","v":0},0,0]
[null,null,"кокс нефтяной и сланцевый","суммарный расход топлива, тыс. тонн",{"$f":"IF(ISNUMBER('1.Внесение данных'!D19*'1.Внесение данных'!E19), '1.Внесение данных'!D19*'1.Внесение данных'!E19, 0)","v":0},"CO2",{"$f":"VLOOKUP(C21,Справочник!$B$43:$I$130,5,0)","v":2.86},{"$f":"E21*G21*VLOOKUP('2. Результат оценки'!C21,Справочник!$B$43:$I$129, 3,FALSE)*1000","v":0},0,{"$f":"I21","v":0}]
[null,null,"мазут топочный","суммарный расход топлива, тыс. тонн",{"$f":"IF(ISNUMBER('1.Внесение данных'!D20*'1.Внесение данных'!E20), '1.Внесение данных'!D20*'1.Внесение данных'!E20, 0)","v":0},"CO2",{"$f":"VLOOKUP(C22,Справочник!$B$43:$I$130,5,0)","v":2.27},{"$f":"E22*G22*VLOOKUP('2. Результат оценки'!C22,Справочник!$B$43:$I$129, 3,FALSE)*1000","v":0},{"$f":"H22","v":0},{"$f":"I22","v":0}]
[null,null,"антрацит","суммарный расход топлива, тыс. тонн",{"$f":"IF(ISNUMBER('1.Внесение данных'!D21*'1.Внесение данных'!E21), '1.Внесение данных'!D21*'1.Внесение данных'!E21, 0)","v":0},"CO2",{"$f":"VLOOKUP(C23,Справочник!$B$43:$I$130,5,0)","v":2.88},{"$f":"E23*G23*VLOOKUP('2. Результат оценки'!C23,Справочник!$B$43:$I$129, 3,FALSE)*1000","v":0},{"$f":"H23","v":0},{"$f":"I23","v":0}]
[null,null,"коксующийся уголь","суммарный расход топлива, тыс. тонн",{"$f":"IF(ISNUMBER('1.Внесение данных'!D22*'1.Внесение данных'!E22), '1.Внесение данных'!D22*'1.Внесение данных'!E22, 0)","v":0},"CO2",{"$f":"VLOOKUP(C24,Справочник!$B$43:$I$130,5,0)","v":2.77},{"$f":"E24*G24*VLOOKUP('2. Результат оценки'!C24,Справочник!$B$43:$I$129, 3,FALSE)*1000","v":0},{"$f":"H24","v":0},{"$f":"I24","v":0}]
[null,null,"каменный уголь","суммарный расход топлива, тыс. тонн",{"$f":"IF(ISNUMBER('1.Внесение данных'!D23*'1.Внесение данных'!E23), '1.Внесение данных'!D23*'1.Внесение данных'!E23, 0)","v":0},"CO2",{"$f":"VLOOKUP(C25,Справочник!$B$43:$I$130,5,0)","v":2.77},{"$f":"E25*G25*VLOOKUP('2. Результат оценки'!C25,Справочник!$B$43:$I$129, 3,FALSE)*1000","v":0},{"$f":"H25","v":0},{"$f":"I25","v":0}]
[null,null,"бурый уголь","суммарный расход топлива, тыс. тонн",{"$f":"IF(ISNUMBER('1.Внесение данных'!D24*'1.Внесение данных'!E24), '1.Внесение данных'!D24*'1.Внесение данных'!E24, 0)","v":0},"CO2",{"$f":"VLOOKUP(C26,Справочник!$B$43:$I$130,5,0)","v":2.96},{"$f":"E26*G26*VLOOKUP('2. Результат оценки'!C26,Справочник!$B$43:$I$129, 3,FALSE)*1000","v":0},{"$f":"H26","v":0},{"$f":"I26","v":0}]
[null,null,"торф топливный","суммарный расход топлива, тыс. тонн",{"$f":"IF(ISNUMBER('1.Внесение данных'!D25*'1.Внесение данных'!E25), '1.Внесение данных'!D25*'1.Внесение данных'!E25, 0)","v":0},"CO2",{"$f":"VLOOKUP(C27,Справочник!$B$43:$I$130,5,0)","v":3.11},{"$f":"E27*G27*VLOOKUP('2. Результат оценки'!C27,Справочник!$B$43:$I$129, 3,FALSE)*1000","v":0},{"$f":"H27","v":0},{"$f":"I27","v":0}]
[null,null,"брикеты и полубрикеты торфяные","суммарный расход топлива, тыс. тонн",{"$f":"IF(ISNUMBER('1.Внесение данных'!D26*'1.Внесение данных'!E26), '1.Внесение данных'!D26*'1.Внесение данных'!E26, 0)","v":0},"CO2",{"$f":"VLOOKUP(C28,Справочник!$B$43:$I$130,5,0)","v":3.11},{"$f":"E28*G28*VLOOKUP('2. Результат оценки'!C28,Справочник!$B$43:$I$129, 3,FALSE)*1000","v":0},{"$f":"H28","v":0},{"$f":"I28","v":0}]
[null,null,"топливо дизельное","суммарный расход топлива, тыс. тонн",{"$f":"IF(ISNUMBER('1.Внесение данных'!D27*'1.Внесение данных'!E27), '1.Внесение данных'!D27*'1.Внесение данных'!E27, 0)","v":0},"CO2",{"$f":"VLOOKUP(C29,Справочник!$B$43:$I$130,5,0)","v":2.17},{"$f":"E29*G29*VLOOKUP('2. Результат оценки'!C29,Справочник!$B$43:$I$129, 3,FALSE)*1000","v":0},{"$f":"H29","v":0},{"$f":"I29","v":0}]
[null,"2.","Производство минеральных материалов"]
[null,null,"производство всех видов стекла","объем производства продукции, тыс. тонн",{"$f":"IF(ISNUMBER('1.Внесение данных'!D76*'1.Внесение данных'!E76),'1.Внесение данных'!D76*'1.Внесение данных'!E76, 0)","v":0},"CO2",{"$f":"H31/E31","v":{"$error":"#DIV/0!"}},{"$f":"'Доп.формулы для кер_стекло'!C20","v":0},{"$f":"H31","v":0},0]
[null,null,"производство керамических изделий","объем производства продукции, тыс. тонн",{"$f":"IF(ISNUMBER('1.Внесение данных'!D59*'1.Внесение данных'!E59),'1.Внесение данных'!D59*'1.Внесение данных'!E59, 0)","v":0},"CO2",{"$f":"J32/E32","v":{"$error":"#DIV/0!"}},{"$f":"'Доп.формулы для кер_стекло'!C11","v":0},{"$f":"H32","v":0},0]
[null,"3.","Сжигание топлива в транспорте"]
[null,null,"авиационный бензин","суммарный расход, тыс. тонн",{"$f":"IF(ISNUMBER('1.Внесение данных'!D32*'1.Внесение данных'!E32), '1.Внесение данных'!D32*'1.Внесение данных'!E32, 0)","v":0},"CO2",{"$f":"Справочник!C230","v":3.1},{"$f":"E34*G34*1000","v":0},{"$f":"H34","v":0},{"$f":"I34","v":0}]
[null,null,"топливо для реактивных двигателей","суммарный расход, тыс. тонн",{"$f":"IF(ISNUMBER('1.Внесение данных'!D33*'1.Внесение данных'!E33), '1.Внесение данных'!D33*'1.Внесение данных'!E33, 0)","v":0},"CO2",{"$f":"Справочник!C231","v":3.1},{"$f":"E35*G35*1000","v":0},{"$f":"H35","v":0},0]
[null,null,"дизельное топливо \n(железнодорожный транспорт)","суммарный расход, тыс. тонн",{"$f":"IF(ISNUMBER('1.Внесение данных'!D34*'1.Внесение данных'!E34), '1.Внесение данных'!D34*'1.Внесение данных'!E34, 0)","v":0},"CO2",{"$f":"Справочник!C221","v":3.149},0,{"$f":"H36","v":0},0]
[null,null,"бензин (А70 (АИ-80), АИ-92, АИ-93, АИ-95, АИ-98) в автотранспорте","суммарный расход, тыс. тонн",{"$f":"IF(ISNUMBER(E38+E39+E40+E41+E42),SUM(E38:E42,0))","v":0},"CO2",{"$f":"Справочник!C216","v":3.0259999999999998},0,{"$f":"H37","v":0},0]
[null,null,"АИ-80","суммарный расход, тыс. тонн",{"$f":"IF(ISNUMBER('1.Внесение данных'!D36*'1.Внесение данных'!E36), '1.Внесение данных'!D36*'1.Внесение данных'!E36, 0)","v":0},"CO2",{"$f":"Справочник!C216:C220","v":3.0259999999999998}]
[null,null,"АИ-92","суммарный расход, тыс. тонн",{"$f":"IF(ISNUMBER('1.Внесение данных'!D37*'1.Внесение данных'!E37), '1.Внесение данных'!D37*'1.Внесение данных'!E37, 0)","v":0},"CO2",3.0259999999999998]
[null,null,"АИ-93","суммарный расход, тыс. тонн",{"$f":"IF(ISNUMBER('1.Внесение данных'!D38*'1.Внесение данных'!E38), '1.Внесение данных'!D38*'1.Внесение данных'!E38, 0)","v":0},"CO2",3.0259999999999998]
[null,null,"АИ-95","суммарный расход, тыс. тонн",{"$f":"IF(ISNUMBER('1.Внесение данных'!D39*'1.Внесение данных'!E39), '1.Внесение данных'!D39*'1.Внесение данных'!E39, 0)","v":0},"CO2",3.0259999999999998]
[null,null,"АИ-98","суммарный расход, тыс. тонн",{"$f":"IF(ISNUMBER('1.Внесение данных'!D40*'1.Внесение данных'!E40), '1.Внесение данных'!D40*'1.Внесение данных'!E40, 0)","v":0},"CO2",3.0259999999999998]
[null,null,"дизельное топливо (летнее, зимнее, арктическое) в автотранспорте","суммарный расход, тыс. тонн",{"$f":"IF(ISNUMBER('1.Внесение данных'!D41*'1.Внесение данных'!E41), '1.Внесение данных'!D41*'1.Внесение данных'!E41, 0)","v":0},"CO2",{"$f":"Справочник!C221","v":3.149},0,{"$f":"H43","v":0},0]
[null,null,"сжиженный нефтяной газ \n(пропан, изобутан, н-бутан)","суммарный расход, тыс. тонн",{"$f":"IF(ISNUMBER('1.Внесение данных'!D42*'1.Внесение данных'!E42), '1.Внесение данных'!D42*'1.Внесение данных'!E42, 0)","v":0},"CO2",{"$f":"Справочник!C229","v":3.16},0,{"$f":"H44","v":0},0]
[null,null,"газ сжиженный \n(морской и внутренний водный транспорт)","суммарный расход, тыс. тонн",{"$f":"IF(ISNUMBER('1.Внесение данных'!D43*'1.Внесение данных'!E43), '1.Внесение данных'!D43*'1.Внесение данных'!E43, 0)","v":0},"CO2",{"$f":"Справочник!C228","v":2.71},0,{"$f":"H45","v":0},0]
[null,null,"мазутное топливо (мазут флотский)","суммарный расход, тыс. тонн",{"$f":"IF(ISNUMBER('1.Внесение данных'!D44*'1.Внесение данных'!E44), '1.Внесение данных'!D44*'1.Внесение данных'!E44, 0)","v":0},"CO2",{"$f":"Справочник!F57","v":2.27},0,{"$f":"H46","v":0},0]
[null,null,"дизельное топливо \n(морской и внутренний водный транспорт)","суммарный расход, тыс. тонн",{"$f":"IF(ISNUMBER('1.Внесение данных'!D45*'1.Внесение данных'!E45), '1.Внесение данных'!D45*'1.Внесение данных'!E45, 0)","v":0},"CO2",{"$f":"Справочник!C232","v":2.95},0,{"$f":"H47","v":0},0]
[null,null,"компримированный природный газ","суммарный расход, тыс. тонн",{"$f":"IF(ISNUMBER('1.Внесение данных'!D46*'1.Внесение данных'!E46), '1.Внесение данных'!D46*'1.Внесение данных'!E46, 0)","v":0},"CO2",{"$f":"Справочник!C228","v":2.71},0,{"$f":"H48","v":0},0]
[null,"4.","Обработка, сжигание и захоронение твердых отходов"]
[null,null,"компостирование (за исключением отходов животноводства (навоз и помет)","масса обработанных отходов, тыс. тонн",{"$f":"IF(ISNUMBER('1.Внесение данных'!D51*'1.Внесение данных'!E51),'1.Внесение данных'!D51*'1.Внесение данных'!E51,0)","v":0},"CH4",{"$f":"Справочник!D256*Справочник!D6","v":112},{"$f":"E50*G50","v":0},{"$f":"H50*Справочник!D6","v":0},{"$f":"I50","v":0}]
[{"$nulls":5},"N2O",{"$f":"Справочник!F256*Справочник!D7","v":79.5},{"$f":"E50*G51","v":0},{"$f":"H51*Справочник!D7","v":0},{"$f":"I51","v":0}]
[null,null,"анаэробное сбраживание (за исключением отходов животноводства (навоз и помет)","масса обработанных отходов, тыс. тонн",{"$f":"IF(ISNUMBER('1.Внесение данных'!D52*'1.Внесение данных'!E52),'1.Внесение данных'!D52*'1.Внесение данных'!E52,0)","v":0},"CH4",{"$f":"Справочник!D257*Справочник!D6","v":28},{"$f":"E52*G52","v":0},{"$f":"H52*Справочник!D6","v":0},0]
[null,null,"сжигание твердых коммунальных отходов (небиологическая фракция)","расход отходов, тыс. тонн",{"$f":"IF(ISNUMBER('1.Внесение данных'!D53*'1.Внесение данных'!E53),'1.Внесение данных'!D53*'1.Внесение данных'!E53,0)","v":0},"CO2",{"$f":"Справочник!C247","v":0.92},{"$f":"E53*G53","v":0},{"$f":"H53","v":0},0]
[null,null,"сжигание нефтесодержащих отходов","суммарный расход топлива, тыс. тонн",{"$f":"IF(ISNUMBER('1.Внесение данных'!D54*'1.Внесение данных'!E54),'1.Внесение данных'!D54*'1.Внесение данных'!E54,0)","v":0},"CO2",{"$f":"Справочник!C248","v":2.91},{"$f":"E54*G54","v":0},{"$f":"H54","v":0},{"$f":"I54","v":0}]
[null,null,"Источник: Постановление Правительства РФ от 20.04.2022 N 707 (ред. от 29.10.2022) \"Об утверждении Правил представления и проверки отчетов о выбросах парниковых газов, формы отчета о выбросах парниковых газов, Правил создания и ведения реестра выбросов парниковых газов и о внесении изменений в некоторые акты Правительства Российской Федерации\"."]

{"sheet":"Справочник","index":3,"n_rows":265,"n_cols":10,"rows_kept":265,"cut":false,"hidden":true,"merged":[[213,6,214,6],[215,6,248,6],[252,2,252,3],[252,4,252,5],[253,2,253,3],[253,4,253,5],[252,1,254,1],[245,1,245,5],[198,1,198,5],[179,1,179,5],[194,1,194,5],[213,1,214,1],[213,2,213,4],[213,5,214,5],[233,1,233,5],[242,1,242,5],[171,1,171,5],[133,5,135,5],[139,6,140,6],[141,6,174,6],[118,1,118,8],[121,1,121,8],[125,1,125,8],[139,1,140,1],[139,2,139,4],[139,5,140,5],[139,7,140,7],[4,4,38,4],[44,9,128,9],[42,9,43,9],[159,1,159,5],[168,1,168,5],[42,5,42,6],[42,7,42,8],[44,1,44,8],[70,1,70,8],[110,1,110,8],[114,1,114,8],[71,1,71,8],[28,1,28,3],[42,1,43,1],[42,2,42,4],[8,1,8,3]]}
[]
[null,"Перечень парниковых газов, в отношении которых осуществляется государственный учёт выбросов парниковых газов и ведение кадастра парниковых газов"]
[]
[null,"Наименование \nпарникового газа \n(коммерческое наименование)","Химическая формула","Коэффициент пересчета величин выбросов парниковых газов в эквивалент диоксида углерода (на горизонте \n100 лет)","Источник"]
[null,"Диоксид углерода","CO2",1,"Распоряжение Правительства РФ от 22.10.2021 N 2979-р (ред. от 04.04.2025) \"Об утверждении перечня парниковых газов, в отношении которых осуществляется государственный учет выбросов парниковых газов \nи ведение кадастра парниковых газов\""]
[null,"Метан","CH4",28]
[null,"Закись азота\n(монооксид диазота)","N2O",265]
[null,"Гексафторид серы","SF6",23500]
[null,"Гидрофторуглероды (ГФУ)"]
[null,"ГФУ-23\nтрифторметан","CHF3",12400]
[null,"ГФУ-32\nдифторметан","CH2F2",677]
[null,"ГФУ-41\nфторметан","CH3F",116]
[null,"ГФУ-43-10mee\n1,1,1,2,2,3,4,5,5,5-декафторпентан","C5H2F10\n(CF3CHFCHFCF2CF3)",1650]
[null,"ГФУ-125\nпентафторэтан","CHF2CF3",3170]
[null,"ГФУ-134\n1,1,2,2-тетрафторэтан","C2H2F4\n(CHF2CHF2)",1120]
[null,"ГФУ-134a\n1,1,1,2-тетрафторэтан","CH2FCF3",1300]
[null,"ГФУ-143\n1,1,2-трифторэтан","CH2FCHF2",328]
[null,"ГФУ-143a\n1,1,1-трифторэтан","CH3CF3",4800]
[null,"ГФУ-152\n1,2-дифторэтан","C2H4F2(CH2FCH2F)",16]
[null,"ГФУ-152а\n1,1-дифторэтан","C2H4F2(CH3CHF2)",138]
[null,"ГФУ-161\nфторэтан","C2H5F(CH3CH2F)",4]
[null,"ГФУ-227ea\n1,1,1,2,3,3,3-гептафторпропан","C3HF7(CF3CHFCF3)",3350]
[null,"ГФУ-236cb\n1,1,1,2,2,3-гексафторпропан","C3H2F6(CH2FCF2CF3)",1210]
[null,"ГФУ-236ea\n1,1,1,2,3,3-гексафторпропан","C3H2F6(CHF2CHFCF3)",1330]
[null,"ГФУ-236fa\n1,1,1,3,3,3-гексафторпропан","C3H2F6(CF3CH2CF3)",8060]
[null,"ГФУ-245ca\n1,1,2,2,3-пентафторпропан","CH2FCF2CHF2",716]
[null,"ГФУ-245fa\n1,1,1,3,3-пентафторпропан","C3H3F5(CHF2CH2CF3)",858]
[null,"ГФУ-365mfc\n1,1,1,3,3-пентафторбутан","CH3CF2CH2CF3",804]
[null,"Перфторуглероды (ПФУ)"]
[null,"ПФУ-14\nтетрафторметан (перфторметан)","CF4",6630]
[null,"ПФУ-116\nгексафторэтан (перфторэтан)","C2F6",11100]
[null,"ПФУ-218\nоктафторпропан (перфторпропан)","C3F8",8900]
[null,"ПФУ-3-1-10\nдекафторбутан (перфторбутан)","C4F10",9200]
[null,"ПФУ-318\nоктафторциклобутан\n(перфторциклобутан)","c-C4F8",9540]
[null,"ПФУ-4-1-12\nдодекафторпентан\n(перфторпентан)","n-C5F12",8550]
[null,"ПФУ-5-1-14\nтетрадекафторгексан\n(перфторгексан)","n-C6F14",7910]
[null,"ПФУ-9-1-18\nоктадекафтордекалин\n(перфтордекалин)","C10F18",7190]
[null,"Перфторциклопентен","c-C5F8",2]
[null,"Трифторид азота","NF3",16100]
[]
[null,"Коэффициенты перевода расхода топлива в энергетические единицы, коэффициенты выбросов CO2 и содержание углерода по видам топлива"]
[]
[null,"Виды топлива","Коэффициенты перевода в тонны условного топлива и энергетические единицы (NCVj,y)",null,null,"Коэффициенты выбросов (EFCO2,j,y)",null,"Содержание углерода (WC,j,y)",null,"Источник"]
[null,null,"Единица измерения","т у.т./т (тыс. м3)","ТДж/тыс. т (млн м3)","т CO2/т у.т.","т CO2/ТДж","т C/т у.т.","т C/ТДж"]
[null,"Жидкие топлива (нефть и продукты переработки нефти)",{"$nulls":7},"Приказ Минприроды России от 27.05.2022 N 371 \n\"Об утверждении методик количественного определения объемов выбросов парниковых газов \nи поглощений парниковых газов\" (Зарегистрировано \nв Минюсте России 29.07.2022 N 69451)"]
[null,"Нефть, включая \nпромысловый газоконденсат","тонна",1.43,41.9,2.15,73.3,0.59,20]
[null,"Природный газовый конденсат","тонна",1.508,44.2,1.88,64.2,0.51,17.5]
[null,"Газ попутный нефтяной (нефтяные месторождения)","тыс. м3",1.1539999999999999,33.799999999999997,1.77,60.4,0.48,16.5]
[null,"Газ попутный нефтяной (газоконденсатные месторождения)","тыс. м3",1.1539999999999999,33.799999999999997,1.64,55.9,0.45,15.3]
[null,"Газ попутный нефтяной \n(газовые месторождения)","тыс. м3",1.1539999999999999,33.799999999999997,1.62,55.2,0.44,15.1]
[null,"Бензин автомобильный","тонна",1.49,43.7,2.0299999999999998,69.3,0.55000000000000004,18.899999999999999]
[null,"Бензин авиационный","тонна",1.49,43.7,2.0499999999999998,70,0.56000000000000005,19.100000000000001]
[null,"Авиационный керосин","тонна",1.47,43.1,2.1,71.5,0.56999999999999995,19.5]
[null,"Керосин","тонна",1.47,43.1,2.11,71.900000000000006,0.57999999999999996,19.600000000000001]
[null,"Топливо дизельное","тонна",1.45,42.5,2.17,74.099999999999994,0.59,20.2]
[null,"Мазут топочный","тонна",1.37,40.200000000000003,2.27,77.400000000000006,0.62,21.1]
[null,"Мазут флотский","тонна",1.43,41.9,2.27,77.400000000000006,0.62,21.1]
[null,"Топливо печное бытовое","тонна",1.45,42.5,2.27,77.400000000000006,0.62,21.1]
[null,"Газ сжиженный нефтяной","тонна",1.57,46,1.85,63.1,0.5,17.2]
[null,"Другие моторные топлива","тонна",1.47,43.1,2.11,71.900000000000006,0.57999999999999996,19.600000000000001]
[null,"Нефтебитум","тонна",1.35,39.6,2.37,80.7,0.65,22]
[null,"Этан","тонна",1.583,46.4,1.81,61.6,0.49,16.8]
[null,"Пропан","тонна",1.57,46,1.87,63.8,0.51,17.399999999999999]
[null,"Бутан","тонна",1.57,46,1.82,62,0.5,16.899999999999999]
[null,"Пропан и бутан сжиженные, газы углеводородные и их смеси сжиженные","тонна",1.57,46,1.85,63.2,0.51,17.3]
[null,"Лигроин","тонна",1.536,45,2.15,73.3,0.59,20]
[null,"Смазочные материалы","тонна",1.3720000000000001,40.200000000000003,2.15,73.3,0.59,20]
[null,"Газ нефтеперерабатывающих предприятий сухой","тонна",1.5,44,1.3,44.4,0.35,12.1]
[null,"Кокс нефтяной и сланцевый","тонна",1.08,31.7,2.86,97.5,0.78,26.6]
[null,"Другие нефтепродукты","тонна",1.43,41.9,2.15,73.3,0.59,20]
[null,"Твердые топлива (уголь и продукты переработки угля)"]
[null,"Рядовой уголь месторождений:"]
[null,"уголь донецкий","тонна",0.876,25.7,2.65,90.2,0.72,24.6]
[null,"уголь кузнецкий","тонна",0.86699999999999999,25.4,2.69,91.9,0.73,25.1]
[null,"уголь карагандинский","тонна",0.72599999999999998,21.3,2.76,94.2,0.75,25.7]
[null,"уголь подмосковный","тонна",0.33500000000000002,9.82,2.79,95,0.76,25.9]
[null,"уголь воркутинский","тонна",0.82199999999999995,24.1,2.71,92.6,0.74,25.3]
[null,"уголь интинский","тонна",0.64900000000000002,19,2.73,93.1,0.75,25.4]
[null,"уголь челябинский","тонна",0.55200000000000005,16.2,2.78,94.9,0.76,25.9]
[null,"уголь свердловский","тонна",0.33,9.67,2.76,94.2,0.75,25.7]
[null,"уголь башкирский","тонна",0.26400000000000001,7.74,2.76,94.2,0.75,25.7]
[null,"уголь нерюнгринский","тонна",0.98699999999999999,28.9,2.76,94.2,0.75,25.7]
[null,"уголь якутский","тонна",0.751,22,2.76,94.2,0.75,25.7]
[null,"уголь черемховский","тонна",0.752,22,2.75,94,0.75,25.7]
[null,"уголь азейский","тонна",0.48299999999999998,14.2,2.75,93.9,0.75,25.6]
[null,"уголь читинский","тонна",0.48299999999999998,14.2,2.9,98.9,0.79,27]
[null,"уголь гусиноозерский","тонна",0.50600000000000001,14.8,2.78,94.9,0.76,25.9]
[null,"уголь хакасский","тонна",0.72699999999999998,21.3,2.77,94.4,0.76,25.8]
[null,"уголь канско-ачинский","тонна",0.51600000000000001,15.1,2.87,98.1,0.78,26.8]
[null,"уголь тувинский","тонна",0.90600000000000003,26.6,2.76,94.2,0.75,25.7]
[null,"уголь тунгусский","тонна",0.754,22.1,2.76,94.2,0.75,25.7]
[null,"уголь магаданский","тонна",0.70099999999999996,20.5,2.73,93.1,0.75,25.4]
[null,"уголь арктический (шпицбергенский)","тонна",0.66900000000000004,19.600000000000001,2.76,94.2,0.75,25.7]
[null,"уголь норильский","тонна",0.76100000000000001,22.3,2.76,94.2,0.75,25.7]
[null,"уголь огоджинский","тонна",0.44700000000000001,13.1,2.76,94.2,0.75,25.7]
[null,"уголь камчатский","тонна",0.32300000000000001,9.4700000000000006,2.73,93.1,0.75,25.4]
[null,"уголь Приморья","тонна",0.50600000000000001,14.8,2.73,93.1,0.75,25.4]
[null,"уголь экибастузский","тонна",0.628,18.399999999999999,2.77,94.6,0.76,25.8]
[null,"уголь алтайский","тонна",0.78200000000000003,22.9,2.76,94.2,0.75,25.7]
[null,"уголь тугнуйский","тонна",0.69199999999999995,20.3,2.76,94.2,0.75,25.7]
[null,"уголь прочих месторождений","тонна",0.76800000000000002,22.5,2.76,94.2,0.75,25.7]
[null,"уголь импортный","тонна",0.76800000000000002,22.5,2.76,94.2,0.75,25.7]
[null,"Антрацит","тонна",0.91100000000000003,26.7,2.88,98.3,0.79,26.8]
[null,"Коксующийся уголь","тонна",0.96199999999999997,28.2,2.77,94.6,0.76,25.8]
[null,"Каменный уголь","тонна",0.76800000000000002,22.5,2.77,94.6,0.76,25.8]
[null,"Бурый уголь","тонна",0.46700000000000003,13.7,2.96,101,0.81,27.6]
[null,"Сланцы горючие","тонна",0.3,8.7899999999999991,3.14,107,0.86,29.2]
[null,"Брикеты угольные","тонна",0.60499999999999998,17.7,2.86,97.5,0.78,26.6]
[null,"Кокс металлургический","тонна",0.99,29,3.14,107,0.86,29.2]
[null,"Смола каменноугольная коксохимических заводов","тонна",1.3,38.1,2.37,80.7,0.65,22]
[null,"Газы искусственные горючие"]
[null,"Газ горючий искусственный коксовый","тыс. м3",0.56999999999999995,16.7,1.3,44.4,0.35,12.1]
[null,"Газ горючий искусственный доменный","тыс. м3",0.14299999999999999,4.1900000000000004,7.62,260,2.08,71]
[null,"Газ горючий искусственный конвертерный","тыс. м3",0.24,7.06,5.33,182,0.35,49.6]
[null,"Природный газ"]
[null,"Газ горючий природный (естественный)","тыс. м3",1.129,33.08,1.59,54.4,0.43,14.8]
[null,"Газ компримированный","тыс. м3",1.129,33.08,1.59,54.4,0.43,14.8]
[null,"Газ сжиженный","тонна",1.57,46,1.65,56.4,0.45,15.4]
[null,"Торф"]
[null,"Торф топливный","тонна",0.34,10,3.11,106,0.85,28.9]
[null,"Брикеты и полубрикеты торфяные","тонна",0.6,17.600000000000001,3.11,106,0.85,28.9]
[null,"Отходы"]
[null,"Отходы бытовые (небиологическая фракция)","тонна",0.34100000000000003,10,2.69,91.7,0.73,25]
[null,"Прочие горючие отходы технологических производств","тонна у.т.",1,29.3,4.1900000000000004,143,1.1399999999999999,39]
[null,"Нефтяные отходы","тонна",1.3720000000000001,40.200000000000003,2.12,72.2,0.57999999999999996,19.7]
[null,"Биотоплива"]
[null,"Биобензин","тонна",0.92100000000000004,27,2.0699999999999998,70.8,0.56999999999999995,19.3]
[null,"Био-дизтопливо","тонна",0.92100000000000004,27,2.0699999999999998,70.8,0.56999999999999995,19.3]
[null,"Другие виды жидкого биотоплива","тонна",0.93500000000000005,27.4,2.33,79.599999999999994,0.63,21.7]
[]
[null,"Плотность диоксида углерода и метана для различных условий измерения"]
[]
[null,"N","Условия измерений","Плотность диоксида углерода (CO2), кг/м3","Плотность метана (CH4), кг/м3","Источник"]
[null,"1.","273,15 К (0 °C); \n101,325 кПа",1.9767999999999999,0.71699999999999997,"Приказ Минприроды России от 27.05.2022 N 371 \"Об утверждении методик количественного определения объемов выбросов парниковых газов \nи поглощений парниковых газов\" (Зарегистрировано \nв Минюсте России 29.07.2022 N 69451)"]
[null,"2.","288,15 К (15 °C); \n101,325 кПа",1.8737999999999999,0.67969999999999997]
[null,"3.","293,15 К (20 °C); \n101,325 кПа",1.8392999999999999,0.66800000000000004]
[]
[null,"Коэффициенты выбросов CO2 при сжигании топлива, а также плотность разных топлив"]
[]
[null,"Вид топлива","Коэффициент выбросов (EF)",null,null,"Плотность (P), кг/л","Источник","Комментарий"]
[null,null,"т CO2/т (тыс. м3)","Кг/ТДж","Кг/т.у.т."]
[null,"Бензин А-76 (АИ-80)",3.0259999999999998,69300,2031,0.71499999999999997,"Приказ Минприроды России от 27.05.2022 N 371 \n\"Об утверждении методик количественного определения объемов выбросов парниковых газов \nи поглощений парниковых газов\" (Зарегистрировано \nв Минюсте России 29.07.2022 N 69451)"]
[null,"Бензин АИ-92",3.0259999999999998,69300,2031,0.73499999999999999]
[null,"Бензин АИ-93",3.0259999999999998,69300,2031,0.745]
[null,"Бензин АИ-95",3.0259999999999998,69300,2031,0.75]
[null,"Бензин АИ-98",3.0259999999999998,69300,2031,0.76500000000000001]
[null,"Дизельное топливо летнее",3.149,74100,2172,0.86]
[null,"Дизельное топливо зимнее",3.149,74100,2172,0.84]
[null,"Дизельное топливо арктическое",3.149,74100,2172,0.83]
[null,"Сжиженный нефтяной газ (СНГ) (пропан)",2.903,63100,1849,0.52800000000000002,null,"*при t = 0 °C"]
[null,"Сжиженный нефтяной газ СНГ (изобутан)",2.903,63100,1849,0.58199999999999996,null,"*при t = 0 °C"]
[null,"Сжиженный нефтяной газ СНГ \n(н-бутан)",2.903,63100,1849,0.60099999999999998,null,"*при t = 0 °C"]
[null,"Компримированный природный газ (КПГ)",1.84,54400,1594,0.66800000000000004,null,"*при t = 0 °C"]
[null,"Сжиженный природный газ (СПГ)",2.71,54400,1594,0.42399999999999999,null,"*при t = 0 °C"]
[null,"Авиационный керосин",3.16,71900,2100,0.8]
[null,"Авиационный бензин",3.1,69300,2050,0.8]
[null,"Топливо для реактивных двигателей",3.1,71900,2110,0.8]
[null,"Смазочные материалы",2.95,"-","-","-"]
[null,"Топочный мазут","-",77400,"-","-"]
[null,"Твердые топлива (уголь и продукты его переработки) (рядовой) (т)"]
[null,"Донецкий",2.3199999999999998,"-","-","-"]
[null,"Кузнецкий",2.33,"-","-","-"]
[null,"Нерюнгринский",2.72,"-","-","-"]
[null,"Черемховский",2.0699999999999998,"-","-","-"]
[null,"Канско-Ачинский",1.48,"-","-","-"]
[null,"Казахский (Каражаринский)",1.38,"-","-","-"]
[null,"Азейский",1.33,"-","-","-"]
[null,"Читинский",1.4,"-","-","-"]
[null,"Торф (т)"]
[null,"Торф топливный",1.06,"-","-","-"]
[null,"Брикеты и полубрикеты торфяные",1.87,"-","-","-"]
[null,"Отходы (т)"]
[null,"Отходы бытовые (небиологическая фракция)",0.92,"-","-","-"]
[null,"Нефтяные отходы",2.91,"-","-","-"]
[null,"Прочие горючие отходы производства (т у.т.)",4.1900000000000004,"-","-","-"]
[]
[null,"Справочные коэффициенты перевода в единицы измерения "]
[]
[null,"Вид топлива","т","л","тыс м^3","Источник"]
[null,"Стационарное сжигание"]
[null,"Газ горючий природный (естественный)","-","-",1E-3]
[null,"Газ сжиженный",1E-3,"-","-"]
[null,"Пропан и бутан сжиженные, газы углеводородные и их смеси сжиженные","-","-",1E-3]
[null,"Газ попутный нефтяной (нефтяные месторождения)","-","-",1E-3]
[null,"Газ попутный нефтяной (газоконденсатные месторождения)","-","-",1E-3]
[null,"Газ попутный нефтяной (газовые месторождения)","-","-",1E-3]
[null,"Газ горючий искусственный доменный","-","-",1]
[null,"Кокс металлургический",1E-3,"-","-"]
[null,"Кокс нефтяной и сланцевый",1E-3,"-","-"]
[null,"Мазут (мазут топочный)",1E-3,"-","-"]
[null,"Уголь, за исключением бурого",1E-3,"-","-"]
[null,"Уголь бурый",1E-3,"-","-"]
[null,"Торф топливный, брикеты и полубрикеты торфяные",1E-3,"-","-"]
[null,"Дизельное топливо",1E-3,{"$f":"C194/0.00086/1000000","v":1.1627906976744186E-6},{"$f":"C194/0.00086","v":1.1627906976744187},"Рассчитано консультантом на основе:\nГОСТ 305-82 Топливо дизельное","."]
[null,"Мобильное сжигание"]
[null,"Авиационный бензин",1E-3,"-","-"]
[null,"Топливо для реактивных двигателей",1E-3,{"$f":"C197/0.0008/1000000","v":1.2500000000000001E-6},{"$f":"C197/0.0008","v":1.25},"Рассчитано консультантом на основе:\nГОСТ 10227-86 Топливо для реактивных двигателей","."]
[null,"Дизельное топливо (железнодорожный транспорт)",1E-3,"-","-"]
[null,"Бензин  в автотранспорте"]
[null,"АИ-80",1E-3,{"$f":"C200/0.000715/1000000","v":1.3986013986013985E-6},{"$f":"C200/0.000715","v":1.3986013986013985},"Рассчитано консультантом на основе:\nМетодические рекомендации по оценке АЗС для целей залога, Рекомендовано к применению решением Комитета АРБ по оценочной деятельности (Протокол Заседания Комитета от 7 октября 2009 года)\n","."]
[null,"АИ-92",1E-3,{"$f":"C201/0.000735/1000000","v":1.3605442176870749E-6},{"$f":"C201/0.000735","v":1.360544217687075},"Рассчитано консультантом на основе:\nМетодические рекомендации по оценке АЗС для целей залога, Рекомендовано к применению решением Комитета АРБ по оценочной деятельности (Протокол Заседания Комитета от 7 октября 2009 года)\n","."]
[null,"АИ-93",1E-3,{"$f":"C202/0.000745/1000000","v":1.3422818791946309E-6},{"$f":"C202/0.000745","v":1.3422818791946309},"Рассчитано консультантом на основе: Приказ Минприроды России от 27.05.2022 N 371 \"Об утверждении методик количественного определения объемов выбросов парниковых газов и поглощений парниковых газов\" (Зарегистрировано в Минюсте России 29.07.2022 N 69451)\n","."]
[null,"АИ-95",1E-3,{"$f":"C203/0.0007475/1000000","v":1.3377926421404683E-6},{"$f":"C203/0.0007475","v":1.3377926421404682},"Рассчитано консультантом на основе:\nМетодические рекомендации по оценке АЗС для целей залога, Рекомендовано к применению решением Комитета АРБ по оценочной деятельности (Протокол Заседания Комитета от 7 октября 2009 года)\n","."]
[null,"АИ-98",1E-3,{"$f":"C204/0.000765/1000000","v":1.3071895424836602E-6},{"$f":"C204/0.000765","v":1.3071895424836601},"Рассчитано консультантом на основе:\nМетодические рекомендации по оценке АЗС для целей залога, Рекомендовано к применению решением Комитета АРБ по оценочной деятельности (Протокол Заседания Комитета от 7 октября 2009 года)\n","."]
[null,"Дизельное топливо (летнее, зимнее, арктическое) в автотранспорте",1E-3,"-","-"]
[null,"Сжиженный нефтяной газ (пропан, изобутан, н-бутан)",1E-3,"-","-"]
[null,"Газ сжиженный (морской и внутренний водный транспорт)",1E-3,"-","-"]
[null,"Мазутное топливо (мазут флотский)",1E-3,"-","-"]
[null,"Дизельное топливо (морской и внутренний водный транспорт)",1E-3,"-","-"]
[null,"Компримированный природный газ",1E-3,"-","-"]
[]
[null,"Коэффициенты выбросов CO2 при сжигании топлива, а также плотность разных топлив"]
[]
[null,"Вид топлива","Коэффициент выбросов (EF)",null,null,"Плотность (P), кг/л","Источник"]
[null,null,"т CO2/т (тыс. м3)","Кг/ТДж","Кг/т.у.т."]
[null,"Бензин АИ-80",3.0259999999999998,69300,2031,0.71499999999999997,"Приказ Минприроды России от 27.05.2022 N 371 \n\"Об утверждении методик количественного определения объемов выбросов парниковых газов \nи поглощений парниковых газов\" (Зарегистрировано \nв Минюсте России 29.07.2022 N 69451)"]
[null,"Бензин АИ-92",3.0259999999999998,69300,2031,0.73499999999999999]
[null,"Бензин АИ-93",3.0259999999999998,69300,2031,0.745]
[null,"Бензин АИ-95",3.0259999999999998,69300,2031,0.75]
[null,"Бензин АИ-98",3.0259999999999998,69300,2031,0.76500000000000001]
[null,"Дизельное топливо летнее",3.149,74100,2172,0.86]
[null,"Дизельное топливо зимнее",3.149,74100,2172,0.84]
[null,"Дизельное топливо арктическое",3.149,74100,2172,0.83]
[null,"Сжиженный нефтяной газ (СНГ) (пропан)",2.903,63100,1849,"0,528 (при t = 0 °C)"]
[null,"Сжиженный нефтяной газ СНГ (изобутан)",2.903,63100,1849,"0,582 (при t = 0 °C)"]
[null,"Сжиженный нефтяной газ СНГ (н-бутан)",2.903,63100,1849,"0,601 (при t = 0 °C)"]
[null,"Компримированный природный газ (КПГ)",1.84,54400,1594,"0,668 (при t = 0 °C)"]
[null,"Сжиженный природный газ (СПГ)",2.71,54400,1594,"0,424 (при t = 0 °C)"]
[null,"Авиационный керосин",3.16,71900,2100,0.8]
[null,"Авиационный бензин",3.1,69300,2050,0.8]
[null,"Топливо для реактивных двигателей",3.1,71900,2110,0.8]
[null,"Смазочные материалы",2.95,"-","-","-"]
[null,"Топочный мазут","-",77400,"-","-"]
[null,"Твердые топлива (уголь и продукты его переработки) (рядовой) (т)"]
[null,"Донецкий",2.3199999999999998,"-","-","-"]
[null,"Кузнецкий",2.33,"-","-","-"]
[null,"Нерюнгринский",2.72,"-","-","-"]
[null,"Черемховский",2.0699999999999998,"-","-","-"]
[null,"Канско-Ачинский",1.48,"-","-","-"]
[null,"Казахский (Каражаринский)",1.38,"-","-","-"]
[null,"Азейский",1.33,"-","-","-"]
[null,"Читинский",1.4,"-","-","-"]
[null,"Торф (т)"]
[null,"Торф топливный",1.06,"-","-","-"]
[null,"Брикеты и полубрикеты торфяные",1.87,"-","-","-"]
[null,"Отходы (т)"]
[null,"Отходы бытовые (небиологическая фракция)",0.92,"-","-","-"]
[null,"Нефтяные отходы",2.91,"-","-","-"]
[null,"Прочие горючие отходы производства (т у.т.)",4.1900000000000004,"-","-","-"]
[]
[null,"Коэффициенты выбросов CH4 и N2O при биологической обработке отходов"]
[]
[null,"Вид биологической переработки","Коэффициенты выбросов CH4",null,"Коэффициенты выбросов N2O"]
[null,null,"(г CH4/ кг отходов)",null,"(г N2O/кг отходов)"]
[null,null,"на основе сухого веса","на основе сырого веса","на основе сухого веса","на основе сырого веса"]
[null,"Компостирование",10,4,0.6,0.3]
[null,"Анаэробное сбраживание \nв биогазовых установках",2,1,"Не учитываем","Не учитываем"]
[]
[null,"Коэффициенты выбросов CO2 для некоторых карбонатов"]
[]
[null,"Химическая формула карбоната","Коэффициент выбросов (EFi), т CO2/т"]
[null,"CaCO3",0.44]
[null,"MgCO3",0.52200000000000002]
[null,"CaMg(CO3) 2",0.47699999999999998]
[null,"FeCO3",0.38]

{"sheet":"Доп.формулы для кер_стекло","index":4,"n_rows":20,"n_cols":3,"rows_kept":20,"cut":false,"hidden":true,"merged":[]}
[]
[null,"На данном листе приведены дополнительные формулы для расчета выбросов по производству стекла и керамики."]
[]
[null,"Выбросы от керамических изделий"]
[]
[null,"Наименование","Выбросы"]
[null,"CaCO3",{"$f":"'1.Внесение данных'!D60*'1.Внесение данных'!D64*'1.Внесение данных'!D68*Справочник!C262","v":0}]
[null,"MgCO3",{"$f":"'1.Внесение данных'!D61*'1.Внесение данных'!D65*'1.Внесение данных'!D69*Справочник!C263","v":0}]
[null,"CaMg(CO3) 2",{"$f":"'1.Внесение данных'!D62*'1.Внесение данных'!D66*'1.Внесение данных'!D70*Справочник!C264","v":0}]
[null,"FeCO3",{"$f":"'1.Внесение данных'!D63*'1.Внесение данных'!D67*'1.Внесение данных'!D71*Справочник!C265","v":0}]
[null,"Итого",{"$f":"SUM(C7:C10)","v":0}]
[]
[null,"Выбросы от производства стекла"]
[]
[null,"Наименование","Выбросы"]
[null,"CaCO3",{"$f":"'1.Внесение данных'!D77*'1.Внесение данных'!D81*Справочник!C262","v":0}]
[null,"MgCO3",{"$f":"'1.Внесение данных'!D78*'1.Внесение данных'!D82*Справочник!C263","v":0}]
[null,"CaMg(CO3) 2",{"$f":"'1.Внесение данных'!D79*'1.Внесение данных'!D83*Справочник!C264","v":0}]
[null,"FeCO3",{"$f":"'1.Внесение данных'!D80*'1.Внесение данных'!D84*Справочник!C265","v":0}]
[null,"Итого",{"$f":"SUM(C16:C19)","v":0}]

{"sheet":"Ед. измерения","index":5,"n_rows":4,"n_cols":1,"rows_kept":4,"cut":false,"hidden":true,"merged":[]}
["тыс м^3"]
["л"]
["т"]
["Необходимо заполнить"]